bitfinex-derivatives/quotes_SOLF0:USTF0_20260211
["timestamp","ask_amount","ask_price","bid_price","bid_amount"]
[1770793192150,4.12465103,80.869,80.82,3.1330187]
[1770793192350,4.12465103,80.859,80.811,3.21442969]
[1770793192552,4.12465103,80.859,80.82,3.1330187]
[1770793193756,4.12465103,80.859,80.82,6.34744839]
[1770793193945,4.12465103,80.859,80.821,3.21442969]
[1770793196256,4.12465103,80.859,80.778,37.14]
[1770793196257,4.12465103,80.849,80.8,3.1330187]
[1770793196556,4.12465103,80.849,80.801,3.24130432]
[1770793199568,4.12465103,80.839,80.79,3.1330187]
[1770793199766,4.12465103,80.829,80.788,3.25452094]
[1770793199963,4.12465103,80.877,80.788,3.25452094]
[1770793200264,3.1330187,80.86,80.81,3.1330187]
[1770793200462,4.12465103,80.859,80.81,3.1330187]
[1770793201061,4.12465103,80.849,80.8,6.39132753]
[1770793201768,4.12465103,80.849,80.811,3.25830883]
[1770793202370,4.12465103,80.869,80.821,2.83723636]
[1770793203764,4.12465103,80.869,80.83,3.1330187]
[1770793204366,4.12465103,80.869,80.83,6.01232675]
[1770793205665,4.12465103,80.849,80.792,2.87930805]
[1770793205867,4.12465103,80.839,80.792,2.87930805]
[1770793206260,4.12465103,80.829,80.78,3.1330187]
[1770793206465,4.12465103,80.829,80.781,2.89925801]
[1770793206658,4.12465103,80.829,80.784,2.89925801]
[1770793206969,4.12465103,80.849,80.81,3.1330187]
[1770793207163,4.12465103,80.849,80.801,2.89925801]
[1770793207768,4.12465103,80.849,80.81,3.1330187]
[1770793207969,4.12465103,80.849,80.81,6.03227671]
[1770793208268,4.12465103,80.849,80.79,3.1330187]
[1770793208561,4.12465103,80.839,80.79,3.1330187]
[1770793209661,4.12465103,80.839,80.786,3.05610948]
[1770793209662,4.12465103,80.829,80.786,3.05610948]
[1770793209864,4.12465103,80.829,80.79,3.1330187]
[1770793210655,4.12465103,80.829,80.786,3.05610948]
[1770793211354,4.12465103,80.829,80.78,3.1330187]
[1770793212268,4.12465103,80.819,80.77,6.16334112]
[1770793212659,4.12465103,80.819,80.78,3.1330187]
[1770793214769,4.12465103,80.819,80.771,3.03032242]
[1770793215665,3.1330187,80.83,80.781,3.07589529]
[1770793215866,4.12465103,80.829,80.781,3.07589529]
[1770793216265,4.12465103,80.829,80.791,3.46841746]
[1770793216467,4.12465103,80.862,80.82,3.1330187]
[1770793220665,4.12465103,80.862,80.775,23.06522893]
[1770793220666,3.83854521,80.885,80.83,3.1330187]
[1770793220869,3.83854521,80.879,80.83,3.1330187]
[1770793221168,3.83854521,80.879,80.84,3.1330187]
[1770793221972,3.83854521,80.879,80.831,3.53338858]
[1770793222566,3.83854521,80.869,80.82,3.1330187]
[1770793222766,3.83854521,80.869,80.83,3.1330187]
[1770793222967,3.83854521,80.869,80.793,98.74]
[1770793222968,3.1330187,80.88,80.84,3.1330187]
[1770793223173,3.83854521,80.882,80.84,3.1330187]
[1770793224070,3.1330187,80.88,80.84,3.1330187]
[1770793224267,3.83854521,80.879,80.84,3.1330187]
[1770793226077,3.83854521,80.879,80.831,3.53143486]
[1770793226467,3.88837825,80.869,80.82,3.1330187]
[1770793226874,3.88837825,80.869,80.821,3.60405781]
[1770793227069,3.88837825,80.869,80.83,3.1330187]
[1770793227474,3.88837825,80.869,80.821,3.60405781]
[1770793227873,3.88837825,80.869,80.83,3.1330187]
[1770793228081,11.51695421,80.899,80.831,3.60405781]
[1770793228082,3.88837825,80.879,80.831,3.60405781]
[1770793228267,3.88837825,80.879,80.84,3.1330187]
[1770793229879,3.88837825,80.879,80.831,3.60405781]
[1770793231878,3.88837825,80.879,80.84,3.1330187]
[1770793232574,15.02257825,80.893,80.85,3.1330187]
[1770793232781,3.88837825,80.893,80.851,3.72843289]
[1770793232980,3.88837825,80.909,80.86,3.1330187]
[1770793233577,3.88837825,80.907,80.86,3.1330187]
[1770793235082,3.88837825,80.899,80.86,3.1330187]
[1770793236172,3.88837825,80.899,80.851,3.72843289]
[1770793237380,3.88837825,80.899,80.85,3.1330187]
[1770793237381,3.88837825,80.889,80.85,3.1330187]
[1770793238684,0.07833466,80.878,80.85,6.51848997]
[1770793239385,0.07833466,80.878,80.851,3.38547127]
[1770793240581,0.07833466,80.878,80.84,3.1330187]
[1770793240986,0.07833466,80.878,80.84,6.52861226]
[1770793241183,3.88837825,80.889,80.85,3.13291231]
[1770793242286,3.88837825,80.889,80.851,3.42590946]
[1770793243581,3.88837825,80.887,80.841,3.42590946]
[1770793243787,98.7,80.932,80.86,3.13291231]
[1770793243788,3.88837825,80.9,80.86,3.13291231]
[1770793243993,3.88837825,80.9,80.87,3.13291231]
[1770793244683,3.88837825,80.9,80.86,3.13291231]
[1770793244881,3.88837825,80.9,80.853,3.42590946]
[1770793245084,3.88837825,80.899,80.842,11.1411]
[1770793245587,3.88837825,80.899,80.804,98.7]
[1770793245588,3.88837825,80.879,80.83,3.13291231]
[1770793245782,3.88837825,80.869,80.82,3.13291231]
[1770793246782,3.88837825,80.869,80.83,3.13291231]
[1770793246987,3.88837825,80.889,80.84,3.13291231]
[1770793247284,3.88837825,80.889,80.834,11.1422]
[1770793247588,3.88837825,80.889,80.835,3.32359627]
[1770793247776,98.7,80.912,80.83,3.13291231]
[1770793247777,3.88837825,80.879,80.83,3.13291231]
[1770793249683,3.88837825,80.879,80.84,3.13291231]
[1770793250783,3.88837825,80.879,80.831,3.31514395]
[1770793250784,3.73960789,80.875,80.831,3.31514395]
[1770793250988,3.73960789,80.875,80.82,3.13291231]
[1770793251382,3.73960789,80.873,80.82,3.13291231]
[1770793251984,3.73960789,80.884,80.793,3.31994036]
[1770793252185,3.73960789,80.879,80.83,3.13291231]
[1770793253693,11.1371,80.872,80.83,3.13291231]
[1770793253892,3.73960789,80.871,80.831,3.35610343]
[1770793254188,3.73960789,80.889,80.84,3.13291231]
[1770793254394,3.73960789,80.889,80.84,6.46358834]
[1770793254787,3.73960789,80.889,80.841,3.33067603]
[1770793254788,11.1358,80.881,80.841,3.33067603]
[1770793255187,11.1358,80.881,80.824,11.1435]
[1770793255188,3.73960789,80.88,80.83,3.13291231]
[1770793255590,3.73960789,80.871,80.83,3.13291231]
[1770793255796,3.73960789,80.871,80.82,3.13291231]
[1770793256593,0.07814007,80.854,80.82,6.44482122]
[1770793256896,3.73960789,80.886,80.831,3.31190891]
[1770793257690,3.73960789,80.886,80.84,3.13291231]
[1770793258791,14.87500789,80.884,80.84,3.13291231]
[1770793260091,3.73960789,80.883,80.84,3.13291231]
[1770793260293,3.73960789,80.883,80.841,3.23317388]
[1770793260495,3.73960789,80.883,80.84,3.13291231]
[1770793260496,3.73960789,80.899,80.843,3.23317388]
[1770793260693,3.73960789,80.899,80.792,37.14]
[1770793260694,3.73960789,80.889,80.83,6.36608619]
[1770793260896,3.73960789,80.879,80.82,3.13291231]
[1770793261200,3.73960789,80.879,80.82,6.36608619]
[1770793261597,3.73960789,80.879,80.821,3.23317388]
[1770793261797,3.73960789,80.874,80.821,3.23317388]
[1770793263506,11.137,80.873,80.83,3.13291231]
[1770793263702,14.87660789,80.873,80.83,3.13291231]
[1770793265196,3.13291231,80.88,80.83,3.13291231]
[1770793265197,11.1373,80.87,80.83,3.13291231]
[1770793265393,3.73960789,80.869,80.81,3.13291231]
[1770793265603,3.73960789,80.869,80.784,23.06522893]
[1770793265604,3.13291231,80.85,80.8,3.13291231]
[1770793265902,3.73960789,80.847,80.795,3.14506716]
[1770793266201,37.14,80.876,80.795,3.14506716]
[1770793266202,3.73960789,80.839,80.795,3.14506716]
[1770793267402,3.73960789,80.839,80.8,3.13291231]
[1770793267608,11.1405,80.847,80.81,3.13291231]
[1770793267808,3.73960789,80.846,80.79,3.13291231]
[1770793268105,3.73960789,80.846,80.811,0.07860776]
[1770793268511,11.1409,80.844,80.811,0.07860776]
[1770793269219,3.73960789,80.846,80.811,0.07860776]
[1770793272012,98.7,80.868,80.811,0.07860776]
[1770793272013,3.73960789,80.839,80.811,0.07860776]
[1770793272409,3.73960789,80.839,80.79,6.37039142]
[1770793273015,3.73960789,80.839,80.791,3.18222678]
[1770793273209,3.73960789,80.839,80.8,3.13291231]
[1770793273614,3.73960789,80.839,80.791,3.18222678]
[1770793273814,3.73960789,80.839,80.8,3.13291231]
[1770793274818,3.73960789,80.839,80.811,0.07891004]
[1770793275019,3.13291231,80.85,80.811,0.07891004]
[1770793275217,3.73960789,80.852,80.811,0.07891004]
[1770793276321,3.73960789,80.862,80.82,3.13291231]
[1770793276512,3.13291231,80.86,80.82,3.13291231]
[1770793276711,3.13291231,80.86,80.811,3.31201436]
[1770793276712,3.73960789,80.859,80.811,3.23310432]
[1770793277813,3.73960789,80.857,80.811,3.23310432]
[1770793278117,3.73960789,80.857,80.82,3.13291231]
[1770793278319,3.73960789,80.857,80.773,23.06522893]
[1770793278320,3.73960789,80.849,80.801,3.10896813]
[1770793278816,3.73960789,80.849,80.81,3.13291231]
[1770793279722,3.73960789,80.849,80.801,3.10896813]
[1770793279909,3.73960789,80.849,80.81,3.13291231]
[1770793280620,3.73960789,80.849,80.801,3.10896813]
[1770793281118,4.02961713,80.845,80.801,3.10896813]
[1770793281618,4.02961713,80.845,80.817,0.078185]
[1770793282410,11.141,80.843,80.817,0.078185]
[1770793282614,4.02961713,80.842,80.817,0.078185]
[1770793285621,3.13291231,80.85,80.817,0.078185]
[1770793285622,3.94497859,80.839,80.817,0.078185]
[1770793285823,3.94497859,80.839,80.791,3.2147106]
[1770793286015,3.94497859,80.839,80.79,3.13291231]
[1770793286319,3.94497859,80.829,80.781,3.21760088]
[1770793288027,0.07839325,80.813,80.781,3.21760088]
[1770793288326,0.07839325,80.813,80.77,6.26882284]
[1770793288924,3.94497859,80.818,80.77,6.26882284]
[1770793290723,3.94497859,80.808,80.77,3.13291231]
[1770793291319,3.94497859,80.808,80.77,6.26734075]
[1770793292119,3.94497859,80.808,80.771,3.13442844]
[1770793293121,3.94497859,80.808,80.76,3.13291231]
[1770793293328,0.07855793,80.798,80.76,3.13291231]
[1770793293528,0.07855793,80.798,80.76,6.28899752]
[1770793293829,0.07855793,80.798,80.77,3.13291231]
[1770793294416,3.94497859,80.808,80.77,3.13291231]
[1770793294822,11.1442,80.82,80.78,3.13291231]
[1770793295025,3.94497859,80.819,80.78,3.13291231]
[1770793298621,11.144,80.822,80.781,3.06812726]
[1770793298820,15.08767859,80.831,80.79,6.20103957]
[1770793299126,3.94497859,80.83,80.79,6.20103957]
[1770793299432,3.94497859,80.83,80.79,3.06812726]
[1770793300131,3.94497859,80.83,80.79,6.20103957]
[1770793300634,3.94497859,80.83,80.79,3.13291231]
[1770793300824,3.94497859,80.828,80.79,3.13291231]
[1770793301025,3.94497859,80.828,80.781,3.06681121]
[1770793301629,3.94497859,80.824,80.781,3.06681121]
[1770793301830,3.94497859,80.819,80.77,3.13291231]
[1770793302834,11.1454,80.811,80.77,3.13291231]
[1770793303035,3.94497859,80.779,80.72,3.13828378]
[1770793303232,173.359,80.818,80.716,3.3980999]
[1770793303233,15.09797859,80.756,80.716,3.3980999]
[1770793303438,3.94497859,80.755,80.71,3.13828378]
[1770793304036,3.94497859,80.755,80.72,3.13828378]
[1770793304231,11.1516,80.766,80.72,3.13828378]
[1770793304437,11.1516,80.766,80.73,3.13828378]
[1770793305133,3.94497859,80.768,80.73,3.13828378]
[1770793305338,11.1501,80.777,80.73,6.58210448]
[1770793305531,11.1501,80.777,80.74,3.13828378]
[1770793305928,3.94497859,80.781,80.74,3.13828378]
[1770793306134,11.1485,80.789,80.75,3.13828378]
[1770793307142,3.94497859,80.795,80.76,3.13828378]
[1770793307337,11.1472,80.799,80.76,3.13828378]
[1770793307640,3.94497859,80.808,80.76,6.64974378]
[1770793308145,11.146,80.807,80.77,3.13828378]
[1770793308443,3.94497859,80.808,80.78,3.13828378]
[1770793309242,3.94497859,80.808,80.77,3.13828378]
[1770793309431,11.1443,80.819,80.78,3.13828378]
[1770793309635,3.94497859,80.829,80.78,3.13828378]
[1770793310339,3.94497859,80.829,80.771,3.47698088]
[1770793310340,3.94497859,80.829,80.79,3.13828378]
[1770793310545,11.1431,80.828,80.79,3.13828378]
[1770793311631,3.94497859,80.829,80.79,6.61999416]
[1770793311846,11.1418,80.838,80.791,3.48171038]
[1770793312147,14.91852964,80.838,80.791,3.48171038]
[1770793312347,3.77672964,80.837,80.8,3.13828378]
[1770793313337,3.77672964,80.851,80.8,6.4229519]
[1770793313544,3.77672964,80.851,80.737,23.06522893]
[1770793313545,3.77672964,80.865,80.83,3.13828378]
[1770793314341,0.07874336,80.856,80.83,3.13828378]
[1770793314943,0.07874336,80.856,80.82,3.28466812]
[1770793315650,3.77672964,80.879,80.82,3.28466812]
[1770793316143,3.77672964,80.876,80.82,3.28466812]
[1770793317237,3.77672964,80.874,80.806,3.10387494]
[1770793318750,11.1388,80.86,80.806,3.10387494]
[1770793319647,14.91552964,80.86,80.806,3.10387494]
[1770793319843,3.77672964,80.859,80.806,3.10387494]
[1770793320440,3.77672964,80.873,80.811,3.04521352]
[1770793320651,3.77672964,80.873,80.824,0.07973428]
[1770793321041,3.77672964,80.859,80.809,3.04521352]
[1770793322642,3.77672964,80.856,80.809,3.04521352]
[1770793323452,3.77672964,80.852,80.791,3.0074512]
[1770793323643,3.77672964,80.852,80.824,0.08042262]
[1770793324751,11.1402,80.849,80.824,0.08042262]
[1770793325452,3.77672964,80.845,80.775,3.06684004]
[1770793325746,3.77672964,80.838,80.76,3.06684004]
[1770793325946,40.91672964,80.837,80.76,3.06684004]
[1770793326151,3.77672964,80.836,80.76,3.06684004]
[1770793326353,14.92142964,80.817,80.76,3.06684004]
[1770793326855,3.77672964,80.816,80.76,3.06684004]
[1770793327854,0.08039723,80.796,80.76,3.06684004]
[1770793328052,0.08039723,80.796,80.762,3.07130754]
[1770793329151,0.08039723,80.796,80.73,27.0]
[1770793329152,3.85712687,80.796,80.748,3.19670753]
[1770793329352,3.85712687,80.796,80.731,3.19670753]
[1770793329754,3.77672964,80.791,80.731,3.19670753]
[1770793330562,0.07990983,80.769,80.731,3.19670753]
[1770793331061,3.85663947,80.769,80.716,3.17093893]
[1770793331659,3.77672964,80.769,80.716,3.17093893]
[1770793332458,3.77672964,80.757,80.7,3.1609231]
[1770793332864,3.77672964,80.779,80.7,3.1609231]
[1770793333872,3.77672964,80.768,80.702,3.1609231]
[1770793334162,0.0794403,80.748,80.702,3.1609231]
[1770793335767,0.0794403,80.748,80.711,3.0982628]
[1770793336068,0.0794403,80.748,80.671,3.0982628]
[1770793336069,3.77672964,80.747,80.671,3.0982628]
[1770793336362,11.1531,80.756,80.693,11.1617]
[1770793336555,3.77672964,80.762,80.711,3.17428356]
[1770793336760,3.77672964,80.781,80.711,3.17428356]
[1770793337262,3.77672964,80.781,80.72,3.17428356]
[1770793337654,3.77672964,80.781,80.722,3.17428356]
[1770793338066,3.77672964,80.781,80.731,3.17428356]
[1770793338775,0.07975103,80.764,80.731,3.17428356]
[1770793340767,0.07975103,80.764,80.732,14.49523842]
[1770793340972,3.93002949,80.795,80.733,3.33903842]
[1770793341879,3.93002949,80.795,80.744,11.1545]
[1770793342272,3.93002949,80.79,80.721,11.1578]
[1770793342576,3.93002949,80.789,80.718,3.33740716]
[1770793343172,3.93002949,80.781,80.72,3.41591605]
[1770793343770,3.93002949,80.781,80.71,8.39428107]
[1770793344078,3.93002949,80.779,80.704,3.41591605]
[1770793345767,3.93002949,80.779,80.69,8.39428107]
[1770793345768,4.11063039,80.769,80.706,3.48967343]
[1770793346683,4.11063039,80.769,80.711,3.52754375]
[1770793347284,4.11063039,80.765,80.711,3.52754375]
[1770793350084,4.11063039,80.762,80.691,3.53176178]
[1770793350678,4.11063039,80.746,80.691,3.53176178]
[1770793351684,4.11063039,80.743,80.691,3.53176178]
[1770793352482,4.11063039,80.74,80.676,3.53715026]
[1770793353383,4.11063039,80.74,80.678,3.53715026]
[1770793354288,4.11063039,80.737,80.681,3.53715026]
[1770793355690,4.11063039,80.733,80.681,3.53715026]
[1770793355891,0.07855036,80.717,80.681,3.53715026]
[1770793359089,11.1544,80.746,80.684,3.63876345]
[1770793359684,15.26503039,80.746,80.684,3.63876345]
[1770793359885,4.11063039,80.745,80.684,3.63876345]
[1770793360289,4.11063039,80.752,80.686,3.69487314]
[1770793360492,4.11063039,80.752,80.653,2.15604032]
[1770793360493,4.11063039,80.752,80.691,3.69487314]
[1770793361686,4.11063039,80.752,80.694,3.69487314]
[1770793362488,11.1537,80.751,80.697,3.67628831]
[1770793362889,4.11063039,80.75,80.697,3.67628831]
[1770793363290,8.39428107,80.77,80.683,11.163]
[1770793363291,4.11063039,80.742,80.683,11.163]
[1770793363594,4.11063039,80.742,80.684,3.67628831]
[1770793363893,11.1558,80.736,80.684,3.67628831]
[1770793364498,4.11063039,80.735,80.684,3.67628831]
[1770793364689,4.11063039,80.733,80.684,3.67628831]
[1770793365296,4.11063039,80.733,80.7,0.07817707]
[1770793369896,4.11063039,80.748,80.685,3.83473349]
[1770793370292,15.10287274,80.735,80.685,3.83473349]
[1770793370496,3.94687274,80.734,80.669,3.76357857]
[1770793370994,3.94687274,80.73,80.669,3.76357857]
[1770793372693,3.94687274,80.749,80.675,3.76357857]
[1770793373098,3.94687274,80.749,80.681,3.76357857]
[1770793373297,3.94687274,80.748,80.697,3.76357857]
[1770793373998,3.94687274,80.744,80.697,3.76357857]
[1770793374198,3.94687274,80.744,80.684,3.76357857]
[1770793375708,3.94687274,80.74,80.684,3.76357857]
[1770793376610,3.94687274,80.733,80.684,3.76357857]
[1770793376997,3.94687274,80.722,80.665,3.76357857]
[1770793378102,3.94687274,80.722,80.653,3.76357857]
[1770793378306,3.94687274,80.71,80.653,3.76357857]
[1770793378901,3.94687274,80.709,80.66,3.14729556]
[1770793379194,3.94687274,80.705,80.661,3.76357857]
[1770793379595,3.94687274,80.705,80.67,3.14729556]
[1770793379798,3.94687274,80.705,80.661,3.76357857]
[1770793380404,3.14729556,80.72,80.671,3.35880474]
[1770793380593,7.0941683,80.72,80.671,3.35880474]
[1770793380904,15.10537274,80.716,80.671,3.35880474]
[1770793382604,3.94687274,80.715,80.671,3.35880474]
[1770793383311,0.07814828,80.701,80.671,3.35880474]
[1770793383809,0.07814828,80.701,80.66,3.14729556]
[1770793384711,0.07814828,80.701,80.66,3.14700475]
[1770793385716,0.07814828,80.701,80.67,3.14700475]
[1770793385908,3.94687274,80.699,80.651,3.37952836]
[1770793386104,3.94687274,80.699,80.66,3.14700475]
[1770793386310,3.94687274,80.713,80.67,6.51992015]
[1770793386512,3.94687274,80.713,80.67,3.3729154]
[1770793386718,3.94687274,80.713,80.67,6.51992015]
[1770793389029,3.94687274,80.728,80.681,3.4699717]
[1770793391316,3.94687274,80.728,80.7,3.14700475]
[1770793391521,3.94687274,80.728,80.69,3.14700475]
[1770793393230,0.07836213,80.717,80.69,3.14700475]
[1770793399025,0.07836213,80.717,80.681,3.4699717]
[1770793399232,0.07836213,80.717,80.69,3.14700475]
[1770793400725,0.07836213,80.717,80.681,3.4699717]
[1770793400929,0.07836213,80.717,80.654,98.9]
[1770793400930,3.93007365,80.699,80.64,3.87411326]
[1770793401127,3.93007365,80.699,80.641,3.87411326]
[1770793401431,3.93007365,80.699,80.65,3.14700475]
[1770793401826,3.93007365,80.695,80.65,3.14700475]
[1770793402135,3.93007365,80.695,80.66,3.14700475]
[1770793402829,3.93007365,80.708,80.67,3.14700475]
[1770793403027,3.93007365,80.708,80.661,3.87411326]
[1770793403223,3.93007365,80.708,80.67,3.14700475]
[1770793404329,3.93007365,80.708,80.627,23.06522893]
[1770793404330,3.93007365,80.721,80.68,3.14700475]
[1770793404728,3.93007365,80.721,80.68,6.98055603]
[1770793406326,4.02817596,80.734,80.69,3.14700475]
[1770793406732,0.07842208,80.709,80.681,3.83355128]
[1770793407128,0.07842208,80.709,80.69,3.14700475]
[1770793408535,4.02817596,80.734,80.69,3.14700475]
[1770793410443,4.02817596,80.734,80.704,0.07838025]
[1770793415845,4.02817596,80.729,80.704,0.07838025]
[1770793418248,14.30220475,80.74,80.704,0.07838025]
[1770793418547,4.02817596,80.739,80.704,0.07838025]
[1770793424152,4.02817596,80.739,80.704,3.91193153]
[1770793426441,4.02817596,80.739,80.71,3.14358871]
[1770793427558,11.1556,80.738,80.704,0.07838025]
[1770793427743,11.1556,80.738,80.67,23.06522893]
[1770793427744,3.14358871,80.71,80.668,19.25325011]
[1770793428057,4.02817596,80.709,80.668,3.83355128]
[1770793428651,4.02817596,80.709,80.67,3.14358871]
[1770793428950,4.02817596,80.723,80.68,6.97713999]
[1770793429151,4.02817596,80.723,80.681,3.83355128]
[1770793432356,4.02817596,80.723,80.68,3.14358871]
[1770793432552,4.02817596,80.723,80.67,3.14358871]
[1770793432763,4.02817596,80.723,80.671,3.95273336]
[1770793432961,0.5,80.702,80.68,3.14358871]
[1770793433661,4.02817596,80.723,80.68,3.14358871]
[1770793434062,3.98591963,80.719,80.671,3.95273336]
[1770793434855,3.98591963,80.719,80.68,3.14358871]
[1770793435263,0.07832535,80.703,80.68,3.14358871]
[1770793436156,3.98591963,80.719,80.68,7.09632207]
[1770793436352,3.98591963,80.732,80.691,3.95273336]
[1770793436557,3.98591963,80.741,80.691,3.95273336]
[1770793436954,3.98591963,80.738,80.691,3.95273336]
[1770793438169,3.98591963,80.738,80.701,3.95273336]
[1770793438764,3.98591963,80.738,80.711,0.07903581]
[1770793441462,3.98591963,80.766,80.72,3.14358871]
[1770793441656,3.98591963,80.759,80.711,0.07903581]
[1770793441858,3.98591963,80.749,80.712,3.86684354]
[1770793442270,3.98591963,80.761,80.72,3.14358871]
[1770793444269,11.1525,80.76,80.72,3.14358871]
[1770793444767,3.98591963,80.761,80.72,3.14358871]
[1770793444768,3.98591963,80.761,80.721,3.65694464]
[1770793444972,3.98591963,80.761,80.732,0.0786968]
[1770793445469,15.13651963,80.774,80.732,0.0786968]
[1770793445858,3.98591963,80.773,80.732,0.0786968]
[1770793446574,3.98591963,80.773,80.74,3.14358871]
[1770793449474,3.98591963,80.773,80.732,3.63955014]
[1770793450774,3.98591963,80.773,80.74,3.14358871]
[1770793453772,3.98591963,80.773,80.748,0.07928527]
[1770793454972,3.98591963,80.785,80.748,0.07928527]
[1770793455667,11.1492,80.784,80.748,0.07928527]
[1770793455874,3.98591963,80.783,80.748,0.07928527]
[1770793456472,3.98591963,80.781,80.748,0.07928527]
[1770793460774,3.14358871,80.78,80.748,0.07928527]
[1770793461076,3.92082216,80.779,80.748,0.07928527]
[1770793462174,2.15469203,80.811,80.748,0.07928527]
[1770793462175,3.14358871,80.8,80.75,3.14358871]
[1770793462378,3.92082216,80.799,80.75,3.14358871]
[1770793462580,3.92082216,80.789,80.748,3.92452877]
[1770793462788,3.92082216,80.789,80.748,3.8452435]
[1770793464678,3.92082216,80.789,80.75,3.14358871]
[1770793466384,3.73886518,80.801,80.76,6.93995549]
[1770793466585,3.73886518,80.801,80.77,3.14358871]
[1770793467088,3.73886518,80.83,80.781,3.79636678]
[1770793467583,3.73886518,80.841,80.8,6.93995549]
[1770793467885,3.73886518,80.868,80.83,3.14358871]
[1770793468086,3.73886518,80.907,80.85,3.14358871]
[1770793468286,3.73886518,80.899,80.85,3.14358871]
[1770793468485,3.73886518,80.889,80.845,3.79636678]
[1770793468682,3.73886518,80.889,80.85,3.14358871]
[1770793469275,3.73886518,80.879,80.83,3.14358871]
[1770793469479,3.73886518,80.869,80.825,3.79636678]
[1770793471287,3.73886518,80.869,80.82,3.14358871]
[1770793472078,2.15199384,80.921,80.798,3.79636678]
[1770793472079,3.73886518,80.859,80.798,3.79636678]
[1770793472279,3.73886518,80.859,80.81,3.14358871]
[1770793472679,3.73886518,80.849,80.798,3.79636678]
[1770793472884,3.73886518,80.84,80.798,3.79636678]
[1770793473079,3.73886518,80.859,80.801,3.79636678]
[1770793473284,3.73886518,80.859,80.811,3.79636678]
[1770793473685,3.73886518,80.859,80.82,3.14358871]
[1770793473987,3.73886518,80.859,80.81,6.93995549]
[1770793474178,3.73886518,80.859,80.81,3.79636678]
[1770793474377,11.1383,80.863,80.8,3.14358871]
[1770793474378,3.73886518,80.849,80.8,3.14358871]
[1770793474980,3.73886518,80.849,80.796,3.79636678]
[1770793475177,3.73886518,80.849,80.8,6.93995549]
[1770793475583,3.73886518,80.849,80.801,3.79636678]
[1770793475887,3.14358871,80.86,80.811,3.79636678]
[1770793476087,3.73886518,80.862,80.762,98.78]
[1770793476088,3.73886518,80.862,80.821,3.79636678]
[1770793477187,3.73886518,80.879,80.821,3.79636678]
[1770793478179,3.73886518,80.879,80.807,11.1459]
[1770793478180,3.73886518,80.879,80.831,3.79636678]
[1770793478378,3.73886518,80.879,80.84,3.14358871]
[1770793478784,3.73886518,80.895,80.841,3.79636678]
[1770793478978,3.73886518,80.895,80.833,11.1423]
[1770793478979,3.73886518,80.913,80.87,3.14358871]
[1770793479489,3.73886518,80.91,80.861,3.79636678]
[1770793479676,3.73886518,80.91,80.86,3.14358871]
[1770793479882,3.73886518,80.909,80.85,3.14358871]
[1770793480384,3.73886518,80.899,80.848,3.79636678]
[1770793480684,3.73886518,80.899,80.84,3.14358871]
[1770793480990,3.14358871,80.88,80.833,3.79636678]
[1770793481185,3.73886518,80.879,80.83,3.14358871]
[1770793481484,3.73886518,80.879,80.82,3.14358871]
[1770793481790,3.73886518,80.895,80.84,6.93995549]
[1770793482090,3.73886518,80.869,80.811,3.79636678]
[1770793482784,3.73886518,80.865,80.811,3.79636678]
[1770793483287,3.73886518,80.849,80.79,3.14358871]
[1770793483590,3.73886518,80.839,80.79,3.14358871]
[1770793483885,3.73886518,80.834,80.782,3.79636678]
[1770793484679,3.73886518,80.819,80.77,3.14358871]
[1770793484988,3.73886518,80.819,80.767,3.31222264]
[1770793485187,3.73886518,80.819,80.78,3.14358871]
[1770793485391,3.14358871,80.83,80.78,3.14358871]
[1770793486887,3.13750218,80.83,80.78,3.13750218]
[1770793487092,3.73886518,80.832,80.781,3.12500723]
[1770793487687,3.73886518,80.85,80.801,3.12500723]
[1770793487888,3.73886518,80.849,80.801,3.12500723]
[1770793488391,3.13750218,80.86,80.81,6.25741144]
[1770793488591,11.48127726,80.914,80.751,173.5007]
[1770793488592,3.73886518,80.867,80.82,3.13750218]
[1770793488895,3.73886518,80.867,80.82,6.25741144]
[1770793489195,3.73886518,80.867,80.82,3.11990926]
[1770793489497,3.73886518,80.867,80.82,6.25741144]
[1770793489989,3.73886518,80.867,80.81,3.13750218]
[1770793490194,3.73886518,80.859,80.81,3.13750218]
[1770793490792,3.91567641,80.857,80.804,3.11990926]
[1770793492795,11.1373,80.87,80.811,2.91289043]
[1770793492991,3.91567641,80.869,80.81,3.13750218]
[1770793493199,3.91567641,80.859,80.8,3.13750218]
[1770793493590,3.91567641,80.856,80.799,2.91289043]
[1770793493793,3.91567641,80.856,80.8,3.13750218]
[1770793494191,3.91567641,80.856,80.81,6.05039261]
[1770793494393,3.91567641,80.856,80.811,2.90723019]
[1770793494695,15.05327641,80.868,80.82,3.13479334]
[1770793495088,3.13479334,80.88,80.83,6.04202353]
[1770793495089,11.1362,80.878,80.83,6.04202353]
[1770793495494,3.91567641,80.883,80.83,6.04202353]
[1770793495892,3.91567641,80.883,80.84,3.13479334]
[1770793497196,3.91567641,80.883,80.831,2.90723019]
[1770793499397,3.91567641,80.883,80.84,3.13479334]
[1770793499600,3.91567641,80.898,80.841,2.9434339]
[1770793499794,3.91567641,80.898,80.783,52.61969883]
[1770793499795,3.91567641,80.913,80.861,2.9434339]
[1770793499999,37.2,80.939,80.85,3.13479334]
[1770793500000,3.91567641,80.899,80.85,3.13479334]